bitfinex/quotes_BTCUSD_20250714
["timestamp","ask_amount","ask_price","bid_price","bid_amount"]
[1752513289974,0.26164169,120450.0,120440.0,3.66838541]
[1752513290102,0.27824553,120450.0,120440.0,3.24398626]
[1752513290330,0.40620553,120450.0,120440.0,3.24398626]
[1752513290932,0.40620553,120450.0,120440.0,3.25228873]
[1752513291604,0.10389933,120450.0,120440.0,3.25228873]
[1752513291813,0.40620553,120450.0,120440.0,3.23568338]
[1752513293228,0.27824553,120450.0,120440.0,3.23568338]
[1752513293434,0.39786389,120450.0,120440.0,3.23568338]
[1752513294665,0.22351769,120450.0,120440.0,3.24398578]
[1752513295705,0.23181982,120450.0,120440.0,3.24398578]
[1752513296337,0.09559769,120450.0,120440.0,3.24398578]
[1752513296641,0.22351769,120450.0,120440.0,3.24398252]
[1752513296872,0.23181982,120450.0,120440.0,3.24398252]
[1752513297318,0.39786382,120450.0,120440.0,3.24398252]
[1752513298477,0.26994382,120450.0,120440.0,3.24398252]
[1752513298684,0.26994382,120450.0,120440.0,3.23568012]
[1752513298904,0.39782382,120450.0,120440.0,3.23568012]
[1752513299827,0.10389926,120450.0,120440.0,3.66838181]
[1752513300048,0.2234772,120450.0,120440.0,3.66838181]
[1752513300262,0.23177912,120450.0,120440.0,3.66838181]
[1752513300735,0.0955972,120450.0,120440.0,3.66838181]
[1752513300943,0.24008125,120450.0,120440.0,2.81958323]
[1752513301163,0.24008125,120450.0,120440.0,3.66838181]
[1752513301519,0.22182058,120450.0,120440.0,3.66838181]
[1752513301736,0.09394058,120450.0,120440.0,3.66838181]
[1752513301950,0.10224264,120450.0,120440.0,3.66838181]
[1752513302175,0.27658877,120450.0,120440.0,3.24398252]
[1752513302391,0.23842477,120450.0,120440.0,3.24398252]
[1752513302605,0.27658933,120450.0,120440.0,3.24398252]
[1752513302819,0.40446933,120450.0,120440.0,3.24398252]
[1752513303003,0.23012313,120450.0,120440.0,3.24398252]
[1752513303213,0.10224313,120450.0,120440.0,3.24398252]
[1752513303424,0.221821,120450.0,120440.0,3.24398252]
[1752513303737,0.221821,120450.0,120440.0,3.66838181]
[1752513304147,0.21351894,120450.0,120440.0,3.66838181]
[1752513304362,0.221821,120450.0,120440.0,3.65295685]
[1752513304572,0.221821,120450.0,120440.0,2.81957567]
[1752513304786,0.221821,120450.0,120440.0,3.66837425]
[1752513305131,0.221821,120450.0,120440.0,3.45610689]
[1752513305564,0.23012313,120450.0,120440.0,3.45610689]
[1752513307144,0.39616713,120450.0,120440.0,3.45610689]
[1752513307396,0.23012313,120450.0,120440.0,3.45610689]
[1752513307664,0.40446933,120450.0,120440.0,3.45610178]
[1752513307872,0.23842533,120450.0,120440.0,3.45610178]
[1752513308062,0.40446933,120450.0,120440.0,3.45610178]
[1752513308502,0.23012313,120450.0,120440.0,3.45610178]
[1752513310056,0.39616713,120450.0,120440.0,3.45610178]
[1752513310280,0.40446933,120450.0,120440.0,3.45610178]
[1752513310954,0.39616755,120450.0,120440.0,3.44779938]
[1752513311154,0.39616755,120450.0,120440.0,3.45610185]
[1752513311686,0.38620897,120450.0,120440.0,3.45610185]
[1752513312082,0.38620897,120450.0,120440.0,3.43119423]
[1752513312324,0.37790698,120450.0,120440.0,3.44068977]
[1752513312536,0.37790698,120450.0,120440.0,3.45608998]
[1752513313271,0.37790698,120450.0,120440.0,3.44068977]
[1752513313495,0.37790698,120450.0,120440.0,3.46439213]
[1752513314558,0.37790698,120450.0,120440.0,3.45608966]
[1752513314774,0.24172492,120450.0,120440.0,3.25682123]
[1752513315013,0.30480849,120450.0,120440.0,2.51269001]
[1752513315235,0.28682279,120450.0,120440.0,2.83095562]
[1752513315457,0.41462279,120450.0,120440.0,2.83095562]
[1752513315882,0.41462279,120450.0,120440.0,2.51269001]
[1752513316161,0.41462279,120450.0,120440.0,2.83095562]
[1752513316377,0.41462279,120450.0,120440.0,2.83096007]
[1752513317704,0.41062279,120450.0,120440.0,2.83096007]
[1752513318387,0.41062279,120450.0,120440.0,2.51269421]
[1752513318593,0.41062279,120450.0,120440.0,2.83095982]
[1752513320027,0.41062279,120450.0,120440.0,2.51269421]
[1752513320281,0.41062279,120450.0,120440.0,2.83095982]
[1752513320471,0.38452279,120450.0,120440.0,2.83095982]
[1752513320693,0.25672279,120450.0,120440.0,2.83095982]
[1752513320929,0.38448279,120450.0,120440.0,2.83397982]
[1752513322373,0.38448279,120450.0,120440.0,2.50031012]
[1752513322587,0.38448279,120450.0,120440.0,2.83398126]
[1752513323039,0.25672279,120450.0,120440.0,2.83397979]
[1752513323259,0.38448279,120450.0,120440.0,2.83397979]
[1752513323772,0.25672279,120450.0,120440.0,2.83397979]
[1752513324028,0.38448279,120450.0,120440.0,2.51571418]
[1752513324271,0.38448279,120450.0,120440.0,2.83397979]
[1752513325256,0.38448279,120450.0,120440.0,2.8339767]
[1752513327629,0.35718279,120450.0,120440.0,2.8339767]
[1752513328963,0.35714279,120450.0,120440.0,3.15424231]
[1752513329184,0.22942279,120450.0,120440.0,2.8593767]
[1752513329417,0.35714279,120450.0,120440.0,2.8593767]
[1752513331174,0.35714279,120450.0,120440.0,2.85937166]
[1752513331755,0.35714279,120450.0,120440.0,2.85937173]
[1752513332236,0.35714279,120450.0,120440.0,2.85937171]
[1752513333833,0.22942279,120450.0,120440.0,3.17763732]
[1752513334034,0.35714279,120450.0,120440.0,3.25273732]
[1752513336218,0.22942279,120450.0,120440.0,3.25273732]
[1752513336462,0.27227827,120450.0,120440.0,2.5157061]
[1752513336682,0.5725884,120450.0,120440.0,2.5157061]
[1752513336920,0.38200279,120450.0,120440.0,2.5157061]
[1752513340040,0.38200279,120450.0,120440.0,2.51570524]
[1752513341028,0.82108108,120450.0,120440.0,2.51268524]
[1752513341241,1.13921842,120450.0,120440.0,2.51268524]
[1752513341443,1.26689842,120450.0,120440.0,2.51268524]
[1752513341797,1.26689842,120450.0,120440.0,2.04630225]
[1752513342007,1.29181042,120450.0,120440.0,2.04630225]
[1752513342214,1.31726047,120450.0,120440.0,2.04630225]
[1752513342580,1.31826047,120450.0,120440.0,2.04630225]
[1752513344330,1.33958047,120450.0,120440.0,1.56254226]
[1752513344540,1.33958047,120450.0,120440.0,1.33132614]
[1752513344541,1.76411791,120450.0,120440.0,1.33132614]
[1752513344777,1.98009791,120450.0,120440.0,1.23191553]
[1752513345198,1.98009791,120450.0,120440.0,0.61372461]
[1752513345406,1.85145791,120450.0,120440.0,0.51938795]
[1752513345620,1.55456047,120450.0,120440.0,0.41123702]
[1752513345825,1.55556047,120450.0,120440.0,0.4015222]
[1752513346023,1.46822047,120450.0,120440.0,0.4015222]
[1752513346228,0.18270859,120410.0,120400.0,2.50424]
[1752513346441,0.3916957,120410.0,120400.0,2.50642115]
[1752513347317,0.2640557,120410.0,120400.0,2.50642115]
[1752513347515,0.3916957,120410.0,120400.0,2.50642115]
[1752513347734,0.47500504,120410.0,120400.0,2.50429115]
[1752513348789,0.34736504,120410.0,120400.0,2.50429115]
[1752513348984,0.4166957,120410.0,120400.0,2.50429115]
[1752513349340,0.2640557,120410.0,120400.0,2.53102115]
[1752513349542,0.3916957,120410.0,120400.0,2.53102115]
[1752513349741,0.2640557,120410.0,120400.0,2.53102115]
[1752513349944,0.3916957,120410.0,120400.0,2.53102115]
[1752513350941,0.3916957,120410.0,120400.0,2.53093942]
[1752513351954,0.2640557,120410.0,120400.0,2.53093942]
[1752513352161,0.3916957,120410.0,120400.0,2.50633942]
[1752513352977,0.2877557,120410.0,120400.0,2.50633942]
[1752513353266,0.4153957,120410.0,120400.0,2.50633942]
[1752513353506,0.42993655,120410.0,120400.0,2.50100942]
[1752513353760,0.75153399,120410.0,120400.0,2.50420942]
[1752513353996,1.17285133,120410.0,120400.0,2.50420942]
[1752513354274,1.32541133,120410.0,120400.0,2.50100942]
[1752513355411,0.90187389,120410.0,120400.0,2.50100942]
[1752513355657,1.32641133,120410.0,120400.0,2.50100942]
[1752513355887,1.19877133,120410.0,120400.0,2.50100942]
[1752513356106,1.32641133,120410.0,120400.0,2.50100942]
[1752513356592,1.19877133,120410.0,120400.0,2.50100942]
[1752513356870,0.90187389,120410.0,120400.0,2.50100942]
[1752513357094,1.19777133,120410.0,120400.0,2.50100942]
[1752513357544,1.32541133,120410.0,120400.0,2.50100942]
[1752513357777,1.32741133,120410.0,120400.0,2.50100942]
[1752513357999,1.59977133,120410.0,120400.0,2.50100942]
[1752513358230,1.72741133,120410.0,120400.0,2.50100942]
[1752513358668,1.72841133,120410.0,120400.0,2.50100942]
[1752513359118,1.72837133,120410.0,120400.0,2.50100942]
[1752513359339,1.72737133,120410.0,120400.0,2.50100942]
[1752513359557,1.72937133,120410.0,120400.0,2.50100942]
[1752513360604,1.30483389,120410.0,120400.0,2.50100942]
[1752513360817,1.72937133,120410.0,120400.0,2.50100942]
[1752513361024,1.62335399,120410.0,120400.0,2.50100942]
[1752513361470,1.19881655,120410.0,120400.0,2.50100942]
[1752513361937,1.07121655,120410.0,120400.0,2.50100942]
[1752513362148,1.19881655,120410.0,120400.0,2.50100942]
[1752513362792,1.19881655,120410.0,120400.0,2.50407942]
[1752513363020,1.28013389,120410.0,120400.0,2.50407942]
[1752513363272,1.15253389,120410.0,120400.0,2.50407942]
[1752513363468,1.15253389,120410.0,120400.0,2.97704686]
[1752513363469,0.6329757,120410.0,120400.0,2.97704686]
[1752513363680,0.7605757,120410.0,120400.0,2.97704686]
[1752513364121,0.7356557,120410.0,120400.0,2.97704686]
[1752513365063,0.2763601,120410.0,120400.0,2.97704686]
[1752513365307,0.40395996,120410.0,120400.0,3.4015843]
[1752513365541,0.41226478,120410.0,120400.0,2.97704686]
[1752513366025,0.42056973,120410.0,120400.0,2.55250942]
[1752513366250,0.41026533,120410.0,120400.0,2.97704686]
[1752513366484,0.40826533,120410.0,120400.0,2.97704686]
[1752513366712,0.10626059,120410.0,120400.0,3.15977095]
[1752513366937,0.23386059,120410.0,120400.0,3.16807632]
[1752513367180,0.23386059,120410.0,120400.0,3.15977095]
[1752513367423,0.23386059,120410.0,120400.0,3.16807639]
[1752513367646,0.23386059,120410.0,120400.0,3.60922443]
[1752513367879,0.24216527,120410.0,120400.0,3.6092245]
[1752513368107,0.28066498,120410.0,120400.0,2.97704686]
[1752513368331,0.28066498,120410.0,120400.0,3.15977102]
[1752513368559,0.09795598,120410.0,120400.0,3.17638189]
[1752513368802,0.09795591,120410.0,120400.0,3.65922449]
[1752513369272,0.22551591,120410.0,120400.0,3.65922456]
[1752513369505,0.27235975,120410.0,120400.0,3.63430846]
[1752513369780,0.4082245,120410.0,120400.0,3.4515843]
[1752513369999,0.39991975,120410.0,120400.0,3.62700275]
[1752513370225,0.40822457,120410.0,120400.0,3.20246538]
[1752513370671,0.39991975,120410.0,120400.0,3.21077088]
[1752513370888,0.40822457,120410.0,120400.0,3.20246538]
[1752513371114,0.40822457,120410.0,120400.0,3.21077088]
[1752513371347,0.39991975,120410.0,120400.0,3.21907632]
[1752513371849,0.27235975,120410.0,120400.0,3.22007632]
[1752513372054,0.27235975,120410.0,120400.0,3.20346538]
[1752513372284,0.40822457,120410.0,120400.0,3.21177088]
[1752513372495,0.39991975,120410.0,120400.0,3.21177088]
[1752513372709,0.39991975,120410.0,120400.0,3.22007632]
[1752513372931,0.40822457,120410.0,120400.0,3.21177088]
[1752513373194,0.41652952,120410.0,120400.0,3.0373525]
[1752513373431,0.40822519,120410.0,120400.0,3.02904686]
[1752513374855,0.27236072,120410.0,120400.0,2.60450942]
[1752513375083,0.44900833,120410.0,120400.0,2.55450942]
[1752513375302,0.87354577,120410.0,120400.0,2.50607942]
[1752513375524,0.44900833,120410.0,120400.0,2.50607942]
[1752513375783,0.34588833,120410.0,120400.0,2.50607942]
[1752513376013,0.77042577,120410.0,120400.0,2.50607942]
[1752513376231,0.48794918,120410.0,120400.0,2.50300942]
[1752513376459,0.80746662,120410.0,120400.0,2.50300942]
[1752513376685,1.27498662,120410.0,120400.0,2.50300942]
[1752513376910,1.27498662,120410.0,120400.0,2.50100942]
[1752513377151,1.27598662,120410.0,120400.0,2.50100942]
[1752513377436,1.42698662,120410.0,120400.0,2.50100942]
[1752513379768,1.42698662,120410.0,120400.0,2.0609297]
[1752513380236,1.29946662,120410.0,120400.0,2.0609297]
[1752513380482,1.42698662,120410.0,120400.0,2.0609297]
[1752513380946,1.29946662,120410.0,120400.0,2.0609297]
[1752513381163,1.82698662,120410.0,120400.0,2.0609297]
[1752513381407,1.76955433,120410.0,120400.0,2.0609297]
[1752513381636,1.74705433,120410.0,120400.0,2.0609297]
[1752513381870,1.19499689,120410.0,120400.0,2.0609297]
[1752513382100,1.74705433,120410.0,120400.0,2.0609297]
[1752513382334,1.77197633,120410.0,120400.0,2.0609297]
[1752513383087,1.80704748,120410.0,120400.0,2.0609297]
[1752513383550,1.67952748,120410.0,120400.0,2.0609297]
[1752513383777,1.80700748,120410.0,120400.0,2.0609297]
[1752513384884,1.82950748,120410.0,120400.0,2.0609297]
[1752513385367,1.70202748,120410.0,120400.0,2.0609297]
[1752513385594,1.72656492,120410.0,120400.0,1.54809703]
[1752513385830,1.72656492,120410.0,120400.0,1.43097032]
[1752513386044,1.77656492,120410.0,120400.0,1.15452474]
[1752513386256,1.77656492,120410.0,120400.0,0.84099947]
[1752513386438,1.90404492,120410.0,120400.0,0.58170582]
[1752513386676,1.77556492,120410.0,120400.0,0.50959762]
[1752513386897,1.92077291,120410.0,120400.0,0.50959762]
[1752513387114,1.79529291,120410.0,120400.0,0.50959762]
[1752513387331,1.92177291,120410.0,120400.0,1e-08]
[1752513387549,0.20705411,120380.0,120370.0,4e-05]
[1752513387767,1.11690797,120380.0,120370.0,9.116e-05]
[1752513387983,1.15076015,120380.0,120370.0,9.116e-05]
[1752513388205,1.51568915,120380.0,120370.0,9.116e-05]
[1752513388433,0.52278449,120360.0,120350.0,4e-05]
[1752513388647,1.20314904,120360.0,120350.0,0.00055366]
[1752513388828,1.24082425,120360.0,120350.0,0.00055366]
[1752513389120,1.13827525,120360.0,120350.0,0.00055366]
[1752513389346,1.7702961,120360.0,120350.0,0.00055366]
[1752513389567,0.18281486,120340.0,120330.0,0.00307]
[1752513389805,0.18906078,120330.0,120320.0,0.02414]
[1752513390037,0.25586704,120330.0,120320.0,0.47420744]
[1752513390261,0.08134711,120330.0,120320.0,1.13990095]
[1752513390480,0.08965703,120330.0,120320.0,1.13476027]
[1752513390699,0.08134711,120330.0,120320.0,0.72684426]
[1752513390910,0.21713696,120330.0,120320.0,0.71853358]
[1752513391156,0.21713696,120330.0,120320.0,0.71953358]
[1752513391380,0.22544702,120330.0,120320.0,0.71122283]
[1752513391595,0.22544702,120330.0,120320.0,0.70291194]
[1752513391821,0.21713696,120330.0,120320.0,0.71953386]
[1752513392043,0.42482465,120340.0,120330.0,0.23804019]
[1752513392266,0.23365176,120340.0,120330.0,0.71453763]
[1752513392483,0.10617176,120340.0,120330.0,0.71770763]
[1752513393188,0.23365176,120340.0,120330.0,0.71770763]
[1752513393843,0.23365176,120340.0,120330.0,0.71970763]
[1752513394053,0.23365176,120340.0,120330.0,0.72170763]
[1752513394268,0.10617176,120340.0,120330.0,0.72170763]
[1752513394490,0.23365176,120340.0,120330.0,0.72170763]
[1752513395471,0.19579833,120340.0,120330.0,0.10603]
[1752513395655,0.25027029,120340.0,120330.0,0.7217079]
[1752513395913,0.13109973,120340.0,120330.0,0.71339777]
[1752513396132,0.26688924,120340.0,120330.0,0.71339784]
[1752513396358,0.25857973,120340.0,120330.0,0.72170811]
[1752513396576,0.10617176,120340.0,120330.0,0.7383283]
[1752513396802,0.24196099,120340.0,120330.0,0.73001831]
[1752513397023,0.24196099,120340.0,120330.0,0.73832837]
[1752513397249,0.24196099,120340.0,120330.0,0.73832844]
[1752513397710,0.25027036,120340.0,120330.0,0.73001797]
[1752513397939,0.24196099,120340.0,120330.0,0.31379059]
[1752513398168,0.24196099,120340.0,120330.0,0.73832803]
[1752513398392,0.24196099,120340.0,120330.0,0.72170784]
[1752513398616,0.25858008,120340.0,120330.0,0.70508744]
[1752513398839,0.30560556,120340.0,120330.0,0.53056744]
[1752513399083,0.42477667,120340.0,120330.0,0.05603]
[1752513399308,0.41646702,120340.0,120330.0,0.05603]
[1752513399760,0.34975914,120340.0,120330.0,0.48056744]
[1752513399988,0.41646702,120340.0,120330.0,0.48056744]
[1752513400191,0.41646702,120340.0,120330.0,0.05603]
[1752513400450,0.41646702,120340.0,120330.0,0.03303]
[1752513401123,0.42477605,120340.0,120330.0,0.48016744]
[1752513402248,0.25858015,120340.0,120330.0,0.66299778]
[1752513402467,0.26688993,120340.0,120330.0,0.48847791]
[1752513402683,0.25858015,120340.0,120330.0,0.49678832]
[1752513402900,0.25858015,120340.0,120330.0,0.67130825]
[1752513403083,0.2502705,120340.0,120330.0,0.67130825]
[1752513403323,0.25858008,120340.0,120330.0,0.67130825]
[1752513403761,0.43308563,120340.0,120330.0,0.48016744]
[1752513404231,0.42477633,120340.0,120330.0,0.48016744]
[1752513404458,0.41646689,120340.0,120330.0,0.05563]
[1752513404672,0.41646689,120340.0,120330.0,0.48016744]
[1752513405549,0.40815731,120340.0,120330.0,0.48016744]
[1752513405761,0.40815731,120340.0,120330.0,0.03303]
[1752513405981,0.4825993,120340.0,120330.0,0.03303]
[1752513406859,0.42265816,120340.0,120330.0,0.03303]
[1752513407088,0.28898634,120340.0,120330.0,0.48136744]
[1752513407310,0.42473605,120340.0,120330.0,0.05683]
[1752513407498,0.42473605,120340.0,120330.0,0.48136744]
[1752513407962,0.25023057,120340.0,120330.0,0.65588744]
[1752513408282,0.42473599,120340.0,120330.0,0.48136744]
[1752513408567,0.41642669,120340.0,120330.0,0.48136744]
[1752513409868,0.42473647,120340.0,120330.0,0.48136744]
[1752513410097,0.28898669,120340.0,120330.0,0.48136744]
[1752513410312,0.42473592,120340.0,120330.0,0.48136744]
[1752513410533,0.43304563,120340.0,120330.0,0.48136744]
[1752513410737,0.41642627,120340.0,120330.0,0.48136744]
[1752513410949,0.29729592,120340.0,120330.0,0.48136744]
[1752513411159,0.42473592,120340.0,120330.0,0.48136744]
[1752513411375,0.4330457,120340.0,120330.0,0.48136744]
[1752513412428,0.42473592,120340.0,120330.0,0.48136744]
[1752513412652,0.41642627,120340.0,120330.0,0.48136744]
[1752513412861,0.29729578,120340.0,120330.0,0.48136744]
[1752513413066,0.42473578,120340.0,120330.0,0.48136744]
[1752513413302,0.41642627,120340.0,120330.0,0.48136744]
[1752513413721,0.10617176,120340.0,120330.0,0.64757703]
[1752513413997,0.29729557,120340.0,120330.0,0.53136744]
[1752513414229,0.42473557,120340.0,120330.0,0.53136744]
[1752513414699,0.41642606,120340.0,120330.0,0.53136744]
[1752513415181,0.4247355,120340.0,120330.0,0.53136744]
[1752513415404,0.4247355,120340.0,120330.0,0.7058875]
[1752513415625,0.43304515,120340.0,120330.0,0.53136744]
[1752513415882,0.4247355,120340.0,120330.0,0.53967791]
[1752513416725,0.12279029,120340.0,120330.0,0.71419791]
[1752513416935,0.23361176,120340.0,120330.0,0.7308181]
[1752513417180,0.12279036,120340.0,120330.0,0.71419791]
[1752513417398,0.10617176,120340.0,120330.0,0.73912844]
[1752513417624,0.24192092,120340.0,120330.0,0.73912858]
[1752513418089,0.24192092,120340.0,120330.0,0.73081811]
[1752513418292,0.23361176,120340.0,120330.0,0.73081811]
[1752513418510,0.12279022,120340.0,120330.0,0.72250805]
[1752513418713,0.24192092,120340.0,120330.0,0.73081818]
[1752513418932,0.24188092,120340.0,120330.0,0.73081818]
[1752513419151,0.23357176,120340.0,120330.0,0.73912824]
[1752513419370,0.23357176,120340.0,120330.0,0.73081818]
[1752513419853,0.24188092,120340.0,120330.0,0.73912824]
[1752513420106,0.24188092,120340.0,120330.0,0.73081818]
[1752513420325,0.25019022,120340.0,120330.0,0.73081825]
[1752513420552,0.25849966,120340.0,120330.0,0.70588744]
[1752513420775,0.30560508,120340.0,120330.0,0.10683]
[1752513421036,0.42469592,120340.0,120330.0,0.08303]
[1752513421255,0.47187463,120340.0,120330.0,0.08303]
[1752513421715,0.42469592,120340.0,120330.0,0.08303]
[1752513421935,0.42469592,120340.0,120330.0,0.08203]
[1752513422150,0.43300563,120340.0,120330.0,0.08203]
[1752513422602,0.41638689,120340.0,120330.0,0.08203]
[1752513423521,0.41638689,120340.0,120330.0,0.11333]
[1752513423770,0.41638689,120340.0,120330.0,0.53786744]
[1752513423997,0.28898689,120340.0,120330.0,0.03203]
[1752513424258,0.41638689,120340.0,120330.0,0.03203]
[1752513424756,0.28898689,120340.0,120330.0,0.08203]
[1752513424986,0.41638689,120340.0,120330.0,0.08203]
[1752513425213,0.40807724,120340.0,120330.0,0.08203]
[1752513425443,0.40807724,120340.0,120330.0,0.03203]
[1752513426811,0.40807724,120340.0,120330.0,0.07174047]
[1752513427019,0.40807724,120340.0,120330.0,0.49627791]
[1752513427458,0.28898675,120340.0,120330.0,0.49627791]
[1752513427678,0.12279036,120340.0,120330.0,0.73741817]
[1752513427891,0.25849959,120340.0,120330.0,0.74572816]
[1752513428345,0.25849959,120340.0,120330.0,0.73741817]
[1752513428988,0.25849959,120340.0,120330.0,0.74572816]
[1752513429198,0.2668091,120340.0,120330.0,0.73741817]
[1752513429407,0.25849959,120340.0,120330.0,0.74572816]
[1752513429630,0.25849952,120340.0,120330.0,0.74572816]
[1752513429949,0.26680896,120340.0,120330.0,0.74572816]
[1752513430774,0.12279015,120340.0,120330.0,0.74572816]
[1752513430981,0.25849952,120340.0,120330.0,0.74572816]
[1752513431421,0.26680903,120340.0,120330.0,0.32119072]
[1752513431627,0.25849952,120340.0,120330.0,0.74572816]
[1752513432221,0.2668091,120340.0,120330.0,0.74572816]
[1752513432461,0.25845952,120340.0,120330.0,0.74572816]
[1752513432670,0.13940896,120340.0,120330.0,0.74572816]
[1752513432881,0.25845952,120340.0,120330.0,0.74572816]
[1752513433096,0.12279015,120340.0,120330.0,0.74572816]
[1752513433313,0.13109959,120340.0,120330.0,0.74572816]
[1752513433486,0.25845952,120340.0,120330.0,0.74572816]
[1752513434773,0.27507874,120340.0,120330.0,0.72079791]
[1752513434972,0.42465612,120340.0,120330.0,0.53796744]
[1752513436237,0.42465612,120340.0,120330.0,0.7124875]
[1752513436457,0.42465612,120340.0,120330.0,0.54627791]
[1752513436695,0.42465612,120340.0,120330.0,0.68939777]
[1752513436917,0.42465612,120340.0,120330.0,0.72109777]
[1752513437137,0.25015064,120340.0,120330.0,0.72940797]
[1752513437374,0.25015064,120340.0,120330.0,0.7377181]
[1752513437608,0.25846022,120340.0,120330.0,0.73771803]
[1752513437848,0.26676987,120340.0,120330.0,0.72940797]
[1752513438072,0.25846022,120340.0,120330.0,0.7377181]
[1752513438250,0.25015064,120340.0,120330.0,0.74602816]
[1752513438497,0.29729606,120340.0,120330.0,0.72109784]
[1752513438787,0.28898669,120340.0,120330.0,0.00717]
[1752513439031,0.43703718,120340.0,120330.0,0.00717]
[1752513439493,0.28067697,120340.0,120330.0,0.6369775]
[1752513439710,0.25846008,120340.0,120330.0,0.68529797]
[1752513439992,0.12279043,120340.0,120330.0,0.68529797]
[1752513440227,0.25015043,120340.0,120330.0,0.69360796]
[1752513440474,0.25846008,120340.0,120330.0,0.68529797]
[1752513440716,0.30560556,120340.0,120330.0,0.25245047]
[1752513440937,0.25846008,120340.0,120330.0,0.70191858]
[1752513441162,0.25846008,120340.0,120330.0,0.69360845]
[1752513441605,0.43296556,120340.0,120330.0,0.68529825]
[1752513441813,0.43296556,120340.0,120330.0,0.69360845]
[1752513442030,0.30560611,120340.0,120330.0,0.6686775]
[1752513442285,0.41634702,120340.0,120330.0,0.46245744]
[1752513442980,0.41634702,120340.0,120330.0,0.47076791]
[1752513443217,0.41634702,120340.0,120330.0,0.46245744]
[1752513444317,0.41634702,120340.0,120330.0,0.50166791]
[1752513444536,0.41634702,120340.0,120330.0,0.47076791]
[1752513444743,0.41630702,120340.0,120330.0,0.04623047]
[1752513444987,0.28898634,120340.0,120330.0,0.68449811]
[1752513445153,0.24180106,120340.0,120330.0,0.70111816]
[1752513445318,0.2501105,120340.0,120330.0,0.70111816]
[1752513445520,0.13110015,120340.0,120330.0,0.69280817]
[1752513445746,0.13110015,120340.0,120330.0,0.69280824]
[1752513446098,0.42461592,120340.0,120330.0,0.69280824]
[1752513446571,0.24180106,120340.0,120330.0,0.70111823]
[1752513446787,0.2501105,120340.0,120330.0,0.75111823]
[1752513447006,0.2501105,120340.0,120330.0,0.32658079]
[1752513447218,0.2501105,120340.0,120330.0,0.75111823]
[1752513447863,0.25011043,120340.0,120330.0,0.75111823]
[1752513448289,0.23349176,120340.0,120330.0,0.75111823]
[1752513448504,0.24180092,120340.0,120330.0,0.75111823]
[1752513448744,0.10617176,120340.0,120330.0,0.75111823]
[1752513448979,0.00051388,120340.0,120330.0,0.75111823]
[1752513449193,0.02492231,120370.0,120360.0,0.0603]
[1752513449194,0.1744624,120370.0,120360.0,0.0603]
[1752513449406,0.22528212,120370.0,120360.0,0.66972329]
[1752513449622,0.22528178,120370.0,120360.0,0.6893292]
[1752513449836,0.23358935,120370.0,120360.0,0.67271329]
[1752513450030,0.24189706,120370.0,120360.0,0.68932948]
[1752513450308,0.39974411,120370.0,120360.0,0.62562509]
[1752513450527,0.27342411,120370.0,120360.0,0.60410509]
[1752513450748,0.29807306,120370.0,120360.0,0.61951722]
[1752513450960,0.25923871,120370.0,120360.0,0.63613341]
[1752513451167,0.25093073,120370.0,120360.0,0.64444133]
[1752513451371,0.29176542,120370.0,120360.0,0.02050329]
[1752513451595,0.41077798,120370.0,120360.0,0.01845329]
[1752513451816,0.44087798,120370.0,120360.0,0.01845329]
[1752513452035,0.40877798,120370.0,120360.0,0.02040329]
[1752513452481,0.40977798,120370.0,120360.0,0.02040329]
[1752513452680,0.40047041,120370.0,120360.0,0.02040329]
[1752513453358,0.40047041,120370.0,120360.0,0.01845329]
[1752513453569,0.5565286,120370.0,120360.0,0.01546329]
[1752513453784,0.98106604,120370.0,120360.0,0.01546329]
[1752513454495,0.47521126,120370.0,120360.0,0.01546329]
[1752513454722,0.34789126,120370.0,120360.0,0.01546329]
[1752513454933,0.40873798,120370.0,120360.0,0.02044441]
[1752513455141,0.40873798,120370.0,120360.0,0.61945828]
[1752513455615,0.12361059,120370.0,120360.0,0.70398253]
[1752513455829,0.13191775,120370.0,120360.0,0.70398253]
[1752513456047,0.11530336,120370.0,120360.0,0.70398253]
[1752513456256,0.24258315,120370.0,120360.0,0.70398253]
[1752513456468,0.10699606,120370.0,120360.0,0.75398253]
[1752513456885,0.23427606,120370.0,120360.0,0.75498253]
[1752513457309,0.23427606,120370.0,120360.0,0.75398253]
[1752513457517,0.23327606,120370.0,120360.0,0.75398253]
[1752513457734,0.10599606,120370.0,120360.0,1.18051997]
[1752513457938,0.23327606,120370.0,120360.0,1.1805073]
[1752513458388,0.15192895,120370.0,120360.0,1.1805073]
[1752513458602,0.02464895,120370.0,120360.0,1.5225073]
[1752513458806,0.02464895,120370.0,120360.0,1.5205073]
[1752513459018,0.09893259,120400.0,120390.0,0.24874492]
[1752513459225,0.18858527,120400.0,120390.0,0.2661055]
[1752513459518,0.31586527,120400.0,120390.0,0.2661055]
[1752513459736,0.4819787,120400.0,120390.0,0.26912564]
[1752513459939,0.29094848,120400.0,120390.0,0.70196893]
[1752513460365,0.68464325,120400.0,120390.0,0.70196893]
[1752513460577,0.67833823,120400.0,120390.0,0.27743149]
[1752513460993,0.27833823,120400.0,120390.0,0.27743149]
[1752513461212,0.22093213,120400.0,120390.0,0.70196893]
[1752513461454,0.21893213,120400.0,120390.0,0.27743149]
[1752513461671,0.22723729,120400.0,120390.0,0.27743149]
[1752513461881,0.10280687,120400.0,120390.0,0.75196893]
[1752513462093,0.10280687,120400.0,120390.0,0.87924893]
[1752513462315,0.10280687,120400.0,120390.0,0.87920893]
[1752513463165,0.10280687,120400.0,120390.0,0.88020893]
[1752513463785,0.10280687,120400.0,120390.0,0.8821691]
[1752513464204,0.10280687,120400.0,120390.0,0.88216912]
[1752513464628,0.10280687,120400.0,120390.0,0.75492912]
[1752513464848,0.10280687,120400.0,120390.0,0.88216912]
[1752513466942,0.10280687,120400.0,120390.0,0.75492912]
[1752513467813,0.10280687,120400.0,120390.0,0.88216912]
[1752513468029,0.10280687,120400.0,120390.0,0.75491559]
[1752513468469,0.10280687,120400.0,120390.0,0.88211559]
[1752513469854,0.10280687,120400.0,120390.0,0.75491559]
[1752513470403,0.10280687,120400.0,120390.0,0.88211559]
[1752513472020,0.10280687,120400.0,120390.0,0.75491559]
[1752513472437,0.10280687,120400.0,120390.0,0.86675835]
[1752513472640,0.10280687,120400.0,120390.0,0.88207999]
[1752513474575,0.09532687,120400.0,120390.0,0.88207999]
[1752513475243,0.09532687,120400.0,120390.0,0.88207745]
[1752513475464,0.09532687,120400.0,120390.0,0.75487745]
[1752513475677,0.09532687,120400.0,120390.0,0.88207745]
[1752513476374,0.02145976,120400.0,120390.0,0.75487745]
[1752513476815,0.72559502,120440.0,120430.0,0.1909816]
[1752513476816,0.10381338,120440.0,120430.0,0.1909816]
[1752513477033,0.49502363,120440.0,120430.0,0.62253518]
[1752513477250,0.49498363,120440.0,120430.0,0.20101774]
[1752513477682,0.4866813,120440.0,120430.0,0.20101774]
[1752513477867,0.4876813,120440.0,120430.0,0.19271424]
[1752513478101,0.4876813,120440.0,120430.0,0.2010689]
[1752513478316,0.38201222,120440.0,120430.0,0.1927654]
[1752513478526,0.61967417,120440.0,120430.0,0.01536789]
[1752513479371,0.3163011,120440.0,120430.0,0.18445946]
[1752513479597,0.4136611,120440.0,120430.0,0.20936949]
[1752513479803,0.42296343,120440.0,120430.0,0.20936963]